Workbook

Sheet Disclaimer
D10: Disclaimer
D12: This Design Calculation Spreadsheet is provided "as-is" without warranty of any kind. The Montana Department of Transportation makes no representations or warranties whatsoever with respect to the accuracy or completeness of this tool and assumes no responsibility for the suitability of this tool for a particular purpose; and MDT will not be liable for any damages incurred as a result of errors in this tool. By selecting Accept, you are agreeing to these terms and conditions.
K22: WARNING: For the tool to work properly, please make sure you click on "Enable Content/Macros" if the security warning appears.

Sheet Annual Growth Rate (hidden)
A1: Projected Values Based on Annual Growth Rate (AGR)
A3: AGR = | B3: 1.6 | C3: %
A5: Present Year | B5: Present Value (PV) | D5: Future Year | E5: Future Value (FV)
A6: 2014 | B6: 1970 | D6: 2019 | E6: =B6*(B3/100+1)^(D6-A6) -> 2132.724539
A7: 2014 | B7: 1970 | D7: 2039 | E7: =B7*(B3/100+1)^(D7-A7) -> 2929.604033
A8: 2010 | B8: 4150 | D8: 2030 | E8: =B8*(B3/100+1)^(D8-A8) -> 5700.622146
A9: 2010 | B9: 1340 | D9: 2030 | E9: =B9*(B3/100+1)^(D9-A9) -> 1840.682814
A10: 2010 | B10: 1050 | D10: 2011 | E10: =B10*(B3/100+1)^(D10-A10) -> 1066.8
A11: 2010 | B11: 1600 | D11: 2011 | E11: =B11*(B3/100+1)^(D11-A11) -> 1625.6
A12: 2010 | B12: 4150 | D12: 2011 | E12: =B12*(B3/100+1)^(D12-A12) -> 4216.4
A13: 2010 | B13: 1340 | D13: 2011 | E13: =B13*(B3/100+1)^(D13-A13) -> 1361.44
A14: 2010 | B14: 1050 | D14: 2031 | E14: =B14*(B3/100+1)^(D14-A14) -> 1465.403303
A15: 2010 | B15: 1600 | D15: 2031 | E15: =B15*(B3/100+1)^(D15-A15) -> 2232.995509
A16: 2010 | B16: 4150 | D16: 2031 | E16: =B16*(B3/100+1)^(D16-A16) -> 5791.832101
A17: 2010 | B17: 1340 | D17: 2031 | E17: =B17*(B3/100+1)^(D17-A17) -> 1870.133739
E18: =B18*(B3/100+1)^(D18-A18) -> 0
A19: 2009 | B19: 20590 | D19: 2031 | E19: =B19*(B3/100+1)^(D19-A19) -> 29195.63473
E20: =B20*(B3/100+1)^(D20-A20) -> 0
E21: =B21*(B3/100+1)^(D21-A21) -> 0
E22: =B22*(B3/100+1)^(D22-A22) -> 0
E23: =B23*(B3/100+1)^(D23-A23) -> 0
E24: =B24*(B3/100+1)^(D24-A24) -> 0
E25: =B25*(B3/100+1)^(D25-A25) -> 0
